bitfinex-derivatives/quotes_BTCF0:USTF0_20240903
["timestamp","ask_amount","ask_price","bid_price","bid_amount"]
[1725378136510,0.086663,57709.0,57704.0,0.2356]
[1725378136713,0.086663,57709.0,57702.0,0.00871878]
[1725378136714,0.326663,57709.0,57702.0,0.00871878]
[1725378136913,0.326663,57709.0,57700.0,0.46350022]
[1725378136914,0.426663,57709.0,57700.0,0.46350022]
[1725378137228,0.426663,57709.0,57708.0,0.03160767]
[1725378137519,0.426663,57709.0,57708.0,0.0698632]
[1725378138514,0.426663,57709.0,57708.0,0.0008]
[1725378139727,0.426663,57709.0,57708.0,0.03176122]
[1725378140722,0.326663,57709.0,57708.0,0.03176122]
[1725378140922,0.086663,57709.0,57708.0,0.10082442]
[1725378141423,0.086663,57709.0,57708.0,0.1007914]
[1725378141625,0.086663,57709.0,57708.0,0.03176122]
[1725378142330,0.086663,57709.0,57708.0,0.1008237]
[1725378143029,0.086663,57709.0,57708.0,0.03176122]
[1725378143227,0.24,57711.0,57708.0,0.03176122]
[1725378143427,0.326661,57711.0,57710.0,0.06906684]
[1725378143622,0.32666,57711.0,57709.0,0.06906684]
[1725378143818,0.32666,57711.0,57710.0,0.06906684]
[1725378144617,0.24,57711.0,57710.0,0.15572784]
[1725378144825,0.24,57711.0,57710.0,0.086661]
[1725378147130,0.687461,57711.0,57709.0,0.0690803]
[1725378147430,0.173326,57709.0,57708.0,0.03176122]
[1725378147631,0.283726,57709.0,57708.0,0.03176122]
[1725378147825,1.403166,57709.0,57708.0,0.03176122]
[1725378148030,0.086673,57702.0,57701.0,0.08627926]
[1725378148333,0.086673,57702.0,57701.0,0.14417225]
[1725378148334,0.326673,57702.0,57701.0,0.14417225]
[1725378148634,0.326673,57702.0,57701.0,0.05789299]
[1725378149838,0.326673,57702.0,57701.0,0.0308001]
[1725378150136,0.326673,57702.0,57701.0,0.0270941]
[1725378151732,0.6008,57705.0,57701.0,0.0270941]
[1725378152034,0.3608,57711.0,57709.0,0.086663]
[1725378152244,0.3608,57711.0,57709.0,0.11375393]
[1725378152439,0.44746,57711.0,57709.0,0.11375393]
[1725378152741,0.3608,57711.0,57709.0,0.11375393]
[1725378153327,0.2404,57710.0,57709.0,0.02709093]
[1725378153523,0.3504,57710.0,57709.0,0.02709093]
[1725378154433,0.437061,57710.0,57709.0,0.02709093]
[1725378154936,0.327061,57710.0,57709.0,0.02709093]
[1725378155735,0.0004,57710.0,57709.0,0.35375393]
[1725378157032,0.0004,57710.0,57709.0,0.05882456]
[1725378157230,0.2404,57710.0,57709.0,0.05882456]
[1725378157437,0.327061,57710.0,57709.0,0.05882456]
[1725378158033,0.417061,57710.0,57709.0,0.05882456]
[1725378158728,0.503722,57710.0,57709.0,0.05882456]
[1725378160843,0.503722,57710.0,57709.0,0.03173363]
[1725378161044,0.503722,57710.0,57709.0,0.02709254]
[1725378162243,0.177061,57710.0,57709.0,0.02709254]
[1725378162428,0.087061,57710.0,57709.0,0.02709254]
[1725378162627,0.327061,57710.0,57709.0,0.05810095]
[1725378165438,0.327061,57710.0,57709.0,0.19013475]
[1725378165952,0.523722,57710.0,57709.0,0.19013475]
[1725378167248,0.523722,57710.0,57709.0,0.16304221]
[1725378167539,0.523722,57710.0,57709.0,0.19013406]
[1725378168143,0.523722,57710.0,57709.0,0.14468504]
[1725378168743,0.437061,57710.0,57709.0,0.2767202]
[1725378168949,0.087061,57710.0,57709.0,0.43013542]
[1725378169144,0.0004,57710.0,57709.0,0.43013542]
[1725378169351,0.0004,57710.0,57709.0,0.61949864]
[1725378169542,0.0004,57710.0,57709.0,0.51678879]
[1725378169743,0.0004,57710.0,57709.0,0.61948901]
[1725378170055,0.0004,57710.0,57709.0,0.51678879]
[1725378170454,0.0004,57710.0,57709.0,0.61948901]
[1725378170662,0.0004,57710.0,57709.0,0.51678879]
[1725378173339,0.0004,57710.0,57709.0,4.64758879]
[1725378173540,0.0004,57710.0,57709.0,4.28678879]
[1725378173740,0.0004,57710.0,57709.0,0.27678529]
[1725378174747,0.0004,57710.0,57709.0,0.51678529]
[1725378174946,0.0004,57710.0,57709.0,0.61948551]
[1725378175747,0.0004,57710.0,57709.0,0.51678529]
[1725378175942,0.0004,57710.0,57709.0,0.67072272]
[1725378176258,0.00025993,57714.0,57713.0,0.086657]
[1725378176451,0.00025993,57714.0,57713.0,1.00557088]
[1725378176645,0.00025993,57714.0,57713.0,1.7613592]
[1725378176843,0.3608,57725.0,57713.0,1.7613572]
[1725378177047,0.3608,57725.0,57724.0,0.24]
[1725378177252,0.08664,57724.0,57723.0,0.08651572]
[1725378177552,0.086642,57723.0,57721.0,0.08651572]
[1725378177749,0.086642,57723.0,57722.0,0.0270849]
[1725378178753,0.196642,57723.0,57722.0,0.0270849]
[1725378179549,0.283284,57723.0,57722.0,0.0270849]
[1725378179750,0.42175966,57723.0,57722.0,0.0270849]
[1725378179959,0.369926,57723.0,57722.0,0.0270849]
[1725378180150,0.43906385,57723.0,57720.0,0.0518819]
[1725378180347,0.3608,57721.0,57720.0,0.05188704]
[1725378180555,0.741535,57721.0,57720.0,0.07897679]
[1725378180745,0.741535,57721.0,57717.0,0.00025993]
[1725378180746,0.259947,57718.0,57717.0,0.05214697]
[1725378180951,0.971547,57718.0,57717.0,0.02735096]
[1725378181149,2.091307,57718.0,57717.0,0.02735096]
[1725378181849,0.731547,57718.0,57717.0,0.07923818]
[1725378182054,0.69675327,57718.0,57717.0,0.02735114]
[1725378182752,0.644898,57718.0,57717.0,0.02735114]
[1725378182963,0.69675327,57718.0,57717.0,0.02735114]
[1725378184562,0.644898,57718.0,57717.0,0.02735114]
[1725378184760,0.644898,57718.0,57717.0,0.00025993]
[1725378184958,0.644898,57718.0,57717.0,0.02734978]
[1725378185355,0.644898,57718.0,57717.0,0.07924587]
[1725378185356,0.731547,57718.0,57717.0,0.07924587]
[1725378185556,0.731547,57718.0,57717.0,0.02734978]
[1725378187859,0.731547,57718.0,57717.0,0.02735119]
[1725378190256,0.731547,57718.0,57717.0,0.07924728]
[1725378190858,0.731547,57718.0,57717.0,0.07924654]
[1725378191158,1.14420521,57718.0,57717.0,0.02735045]
[1725378191359,1.14420521,57718.0,57717.0,0.02735049]
[1725378191760,1.66396521,57718.0,57717.0,0.02735049]
[1725378191958,1.092347,57718.0,57717.0,0.07925367]
[1725378193768,2.212107,57718.0,57717.0,0.07925367]
[1725378194266,2.212107,57718.0,57717.0,0.07925444]
[1725378195476,2.212107,57718.0,57705.0,7.2e-07]
[1725378195477,0.51976,57717.0,57705.0,7.2e-07]
[1725378195677,0.9616,57706.0,57692.0,0.07799239]
[1725378195866,0.9616,57706.0,57686.0,0.07799239]
[1725378195867,0.086696,57687.0,57686.0,0.07799239]
[1725378196064,0.3608,57687.0,57686.0,0.02710519]
[1725378196264,0.447496,57687.0,57686.0,0.02710519]
[1725378196564,0.447496,57687.0,57686.0,0.05780266]
[1725378196767,0.534192,57687.0,57686.0,0.02710519]
[1725378197074,0.447496,57687.0,57686.0,0.05817093]
[1725378197263,0.447496,57687.0,57686.0,0.02710519]
[1725378197464,0.447496,57687.0,57686.0,0.02710155]
[1725378198269,0.447496,57687.0,57686.0,5.5e-07]
[1725378198473,0.3608,57687.0,57671.0,0.08672]
[1725378198675,0.6008,57675.0,57671.0,0.08672]
[1725378198972,0.24,57675.0,57671.0,0.08672]
[1725378199174,0.24,57675.0,57669.0,0.5798]
[1725378200575,0.24,57675.0,57669.0,0.3398]
[1725378200771,0.24,57675.0,57669.0,0.426522]
[1725378201471,0.24,57675.0,57671.0,0.3608]
[1725378201672,0.00025993,57679.0,57674.0,0.24]
[1725378201877,0.00025993,57679.0,57677.0,0.24]
[1725378202974,0.00025993,57679.0,57676.0,0.3608]
[1725378203178,0.0008,57678.0,57677.0,0.03134552]
[1725378203477,0.0008,57678.0,57677.0,0.87817652]
[1725378203685,0.086691,57690.0,57678.0,0.52012]
[1725378203973,0.24,57680.0,57679.0,0.3129]
[1725378204281,0.326706,57680.0,57679.0,0.3129]
[1725378204483,0.687506,57680.0,57679.0,0.3129]
[1725378204677,0.774212,57680.0,57679.0,0.3129]
[1725378205483,0.086709,57678.0,57677.0,0.03191444]
[1725378209583,0.326709,57678.0,57677.0,0.03191444]
[1725378209786,0.086709,57678.0,57677.0,0.27191444]
[1725378210178,0.086709,57678.0,57670.0,0.3129]
[1725378210179,0.04333854,57678.0,57591.0,0.25073338]
[1725378210488,0.04333854,57678.0,57670.0,0.326721]
[1725378210489,0.24,57676.0,57670.0,0.326721]
[1725378210785,1.1162,57676.0,57671.0,0.08672]
[1725378210983,1.1162,57676.0,57671.0,0.09541697]
[1725378213185,1.1162,57676.0,57673.0,0.086715]
[1725378213382,1.1162,57676.0,57674.0,0.6219]
[1725378213383,0.00015262,57675.0,57674.0,0.6219]
[1725378214679,0.00015262,57675.0,57674.0,0.62186]
[1725378214985,0.87635262,57675.0,57674.0,0.62186]
[1725378215187,0.8762,57675.0,57674.0,0.62186]
[1725378215581,0.8762,57675.0,57672.0,0.3222]
[1725378215791,0.086717,57673.0,57672.0,0.3222]
[1725378215991,0.00095262,57673.0,57672.0,0.3222]
[1725378216581,0.00095262,57673.0,57672.0,0.5622]
[1725378217676,0.08766962,57673.0,57672.0,0.3222]
[1725378218084,0.173436,57672.0,57671.0,0.03155883]
[1725378218289,0.173436,57672.0,57667.0,0.00026016]
[1725378218290,0.086724,57668.0,57667.0,0.00026016]
[1725378218590,0.087524,57668.0,57667.0,0.00026016]
[1725378218985,0.087524,57668.0,57667.0,0.24026016]
[1725378219581,0.08767662,57668.0,57667.0,0.79156247]
[1725378219786,0.08767662,57668.0,57667.0,0.55156247]
[1725378219986,0.087524,57668.0,57667.0,0.03132247]
[1725378220188,0.327524,57668.0,57667.0,0.03132247]
[1725378223686,0.087524,57668.0,57667.0,0.03132247]
[1725378223890,0.963724,57668.0,57667.0,0.27132247]
[1725378224388,1.290448,57668.0,57667.0,0.03132247]
[1725378224790,0.963724,57668.0,57667.0,0.03132247]
[1725378225093,0.96387662,57668.0,57667.0,0.03132247]
[1725378225296,0.963724,57668.0,57667.0,0.03132247]
[1725378225796,0.963724,57668.0,57667.0,0.11787606]
[1725378225998,0.963724,57668.0,57667.0,0.47984837]
[1725378226298,0.963724,57668.0,57667.0,0.39329478]
[1725378227200,0.963724,57668.0,57667.0,0.15329478]
[1725378227588,0.963724,57668.0,57667.0,0.67353478]
[1725378227589,0.8771365,57668.0,57667.0,0.67353478]
[1725378227898,0.8771365,57668.0,57667.0,1.38736846]
[1725378228694,0.8771365,57668.0,57667.0,1.38692584]
[1725378229088,0.8771365,57668.0,57667.0,1.35981816]
[1725378229594,0.8771365,57668.0,57667.0,1.38692428]
[1725378229796,0.0009365,57668.0,57667.0,1.38692428]
[1725378230499,0.0009365,57668.0,57667.0,0.17995828]
[1725378230798,0.0009365,57668.0,57667.0,0.15285216]
[1725378230799,0.087524,57668.0,57667.0,0.15285216]
[1725378230998,0.174248,57668.0,57667.0,0.15285216]
[1725378231201,0.174248,57668.0,57667.0,0.11790714]
[1725378231402,0.174248,57668.0,57667.0,0.03132247]
[1725378231897,0.174248,57668.0,57667.0,0.11790714]
[1725378232103,0.174248,57668.0,57667.0,0.24042397]
[1725378232805,0.174248,57668.0,57667.0,0.03132247]
[1725378233001,0.087524,57668.0,57667.0,0.24047807]
[1725378233189,0.087524,57668.0,57667.0,0.1538934]
[1725378233391,0.087524,57668.0,57667.0,0.11791521]
[1725378233593,0.087524,57668.0,57667.0,0.03132247]
[1725378233594,0.00095262,57668.0,57667.0,0.03132247]
[1725378233793,0.00095262,57668.0,57667.0,0.15355607]
[1725378234001,0.00095262,57668.0,57667.0,0.26739036]
[1725378235587,0.00095262,57668.0,57667.0,0.24028207]
[1725378235801,0.00095262,57668.0,57667.0,0.26739118]
[1725378238293,0.00095262,57668.0,57667.0,0.26755356]
[1725378239997,0.0008,57668.0,57667.0,0.26755356]
[1725378240298,0.087524,57668.0,57667.0,0.18082756]
[1725378241001,0.0008,57668.0,57667.0,0.18082756]
[1725378241302,0.087524,57668.0,57667.0,0.18082741]
[1725378241502,0.08767662,57668.0,57667.0,0.18082741]
[1725378241688,0.963724,57668.0,57667.0,0.18091176]
[1725378241887,0.87715262,57668.0,57667.0,0.26763776]
[1725378242220,0.963724,57668.0,57667.0,0.18091176]
[1725378242894,1.050448,57668.0,57667.0,0.18091176]
[1725378243491,1.411248,57668.0,57667.0,0.2675569]
[1725378243692,1.050448,57668.0,57667.0,0.26755951]
[1725378243888,1.050448,57668.0,57667.0,0.18091176]
[1725378244095,1.050448,57668.0,57667.0,0.26755904]
[1725378244301,1.050448,57668.0,57667.0,0.14507871]
[1725378244527,1.050448,57668.0,57667.0,0.11796975]
[1725378244712,1.050448,57668.0,57667.0,0.05843301]
[1725378245791,1.050448,57668.0,57667.0,0.14508029]
[1725378246197,1.050448,57668.0,57667.0,0.26817495]
[1725378246494,1.050448,57668.0,57667.0,0.14508029]
[1725378246891,1.050448,57668.0,57667.0,0.26808128]
[1725378247803,1.050448,57668.0,57667.0,0.14508061]
[1725378248001,1.10200238,57668.0,57667.0,0.05843333]
[1725378248512,0.87715262,57668.0,57667.0,0.50828854]
[1725378249402,0.877,57668.0,57667.0,0.50828854]
[1725378250800,0.87715262,57668.0,57667.0,0.48117768]
[1725378250997,0.87715262,57668.0,57667.0,0.50828646]
[1725378251308,0.87715262,57668.0,57667.0,0.50772244]
[1725378252707,0.87715262,57668.0,57667.0,0.61096317]
[1725378253207,0.87715262,57668.0,57667.0,0.50772244]
[1725378253614,0.00095262,57668.0,57667.0,0.50772244]
[1725378254017,0.0008,57668.0,57667.0,0.48061366]
[1725378254199,0.0008,57668.0,57667.0,0.5077217]
[1725378254600,0.0008,57668.0,57667.0,0.50772219]
[1725378257405,0.0008,57668.0,57667.0,0.48061366]
[1725378257616,0.0008,57668.0,57667.0,0.50772222]
[1725378258107,0.00093527,57668.0,57667.0,0.61096295]
[1725378258317,0.0008,57668.0,57667.0,0.50772222]
[1725378258800,0.0008,57668.0,57667.0,0.61096295]
[1725378259001,0.0008,57668.0,57667.0,0.50772222]
[1725378259202,0.0008,57668.0,57667.0,0.61096295]
[1725378259398,0.087524,57668.0,57667.0,0.50772222]
[1725378259600,0.963724,57668.0,57667.0,0.18099622]
[1725378259808,1.203724,57668.0,57667.0,0.18099622]
[1725378260511,0.963724,57668.0,57667.0,0.18099622]
[1725378260717,0.963724,57668.0,57667.0,0.18099769]
[1725378262007,0.96387662,57668.0,57667.0,0.18099769]
[1725378262210,0.963724,57668.0,57667.0,0.18099769]
[1725378264518,0.963724,57668.0,57667.0,0.42099769]
[1725378264703,0.08767662,57668.0,57667.0,0.18099769]
[1725378264907,0.087524,57668.0,57667.0,0.18099769]
[1725378265308,0.0008,57668.0,57667.0,0.18099769]
[1725378265613,0.0008,57668.0,57667.0,0.18092475]
[1725378265614,0.087524,57668.0,57667.0,0.18092475]
[1725378266409,0.32767662,57668.0,57667.0,0.18092475]
[1725378266604,0.414248,57668.0,57667.0,0.18092475]
[1725378267012,0.41440062,57668.0,57667.0,0.18092475]
[1725378267316,0.414248,57668.0,57667.0,0.18092563]
[1725378267820,0.414248,57668.0,57667.0,0.26759496]
[1725378268011,0.414248,57668.0,57667.0,0.26759495]
[1725378269213,0.775048,57668.0,57667.0,0.26759495]
[1725378269419,0.535048,57668.0,57667.0,0.26759495]
[1725378270423,0.535048,57668.0,57667.0,0.24048404]
[1725378270622,0.448324,57668.0,57667.0,0.50759511]
[1725378270816,0.448324,57668.0,57667.0,0.42092579]
[1725378270817,0.087524,57668.0,57667.0,0.42092579]
[1725378272927,0.087524,57668.0,57667.0,0.42092945]
[1725378273422,0.0876645,57668.0,57667.0,0.42092945]
[1725378273618,0.08767662,57668.0,57667.0,0.42092945]
[1725378273923,0.775048,57668.0,57667.0,0.26828173]
[1725378274125,0.775048,57668.0,57667.0,0.18162309]
[1725378274422,1.651248,57668.0,57667.0,0.26828458]
[1725378275027,1.651248,57668.0,57667.0,0.05843354]
[1725378275326,1.70280238,57668.0,57667.0,0.05843354]
[1725378275715,1.651248,57668.0,57667.0,0.05843354]
[1725378275915,1.65140062,57668.0,57667.0,0.05843354]
[1725378276215,1.651248,57668.0,57667.0,0.05843354]
[1725378276415,1.564524,57668.0,57667.0,0.05843354]
[1725378276720,1.65140062,57668.0,57667.0,0.05843354]
[1725378276931,1.651248,57668.0,57667.0,0.05843354]
[1725378278920,1.564524,57668.0,57667.0,0.05843354]
[1725378279319,1.46323778,57668.0,57667.0,0.05843354]
[1725378279631,1.4633904,57668.0,57667.0,0.05843354]
[1725378279820,1.37651378,57668.0,57667.0,0.05843354]
[1725378280020,1.411248,57668.0,57667.0,0.05843354]
[1725378281221,1.324524,57668.0,57667.0,0.05843354]
[1725378281524,1.37650159,57668.0,57667.0,0.03132247]
[1725378281725,1.37650159,57668.0,57667.0,0.05843401]
[1725378282118,1.46322559,57668.0,57667.0,0.05843401]
[1725378282722,1.46336681,57668.0,57667.0,0.05843401]
[1725378282923,1.411248,57668.0,57667.0,0.05843401]
[1725378283326,1.324524,57668.0,57667.0,0.27386285]
[1725378283530,1.324524,57668.0,57667.0,0.1450955]
[1725378283734,1.411248,57668.0,57667.0,0.1450955]
[1725378284229,1.46322559,57668.0,57667.0,0.05843401]
[1725378284729,1.37650159,57668.0,57667.0,0.05843401]
[1725378285029,1.32467662,57668.0,57667.0,0.28705867]
[1725378285232,1.2378,57668.0,57667.0,0.28705867]
[1725378285531,0.87715262,57668.0,57667.0,0.37378467]
[1725378285830,0.87715262,57668.0,57667.0,0.4770254]
[1725378286330,0.00095262,57668.0,57667.0,0.4770254]
[1725378288230,0.00095262,57668.0,57667.0,0.37378467]
[1725378290030,0.00095262,57668.0,57667.0,0.47702197]
[1725378290353,0.0008,57672.0,57667.0,0.47702197]
[1725378290354,0.0008,57672.0,57667.0,1.988004]
[1725378290634,0.00026016,57679.0,57678.0,0.186709]
[1725378290839,0.00026016,57679.0,57678.0,0.84089041]
[1725378291031,0.8762,57684.0,57683.0,0.086702]
[1725378291230,0.8762,57687.0,57683.0,0.25573277]
[1725378291433,0.8762,57687.0,57686.0,0.1]
[1725378291637,0.8762,57687.0,57686.0,0.12710811]
[1725378292639,0.8762,57687.0,57686.0,0.35380511]
[1725378293324,0.8762,57687.0,57686.0,1.33107768]
[1725378293525,0.8762,57691.0,57690.0,0.086691]
[1725378293730,0.8762,57691.0,57690.0,0.687491]
[1725378294130,0.8762,57691.0,57690.0,0.90447196]
[1725378294326,0.8762,57691.0,57690.0,0.687491]
[1725378294541,0.8762,57691.0,57690.0,0.7737987]
[1725378294926,0.86825366,57691.0,57690.0,1.8937987]
[1725378295327,0.00026016,57692.0,57691.0,0.08669]
[1725378295541,0.86051382,57701.0,57691.0,0.13204821]
[1725378295731,0.408364,57708.0,57698.0,0.0689824]
[1725378295732,0.86051382,57700.0,57698.0,0.0689824]
[1725378295935,0.86051382,57700.0,57699.0,0.0689824]
[1725378296134,0.86051382,57700.0,57699.0,0.1556604]
[1725378296334,0.403664,57708.0,57700.0,0.086676]
[1725378296335,0.94717982,57707.0,57700.0,0.086676]
[1725378296534,0.00026016,57705.0,57701.0,0.3608]
[1725378296739,0.00026016,57705.0,57704.0,0.24]
[1725378296934,0.86077398,57705.0,57704.0,0.24]
[1725378297138,0.86077398,57705.0,57704.0,0.32667]
[1725378297348,0.00026016,57705.0,57704.0,0.32667]
[1725378299339,0.00026016,57705.0,57704.0,0.24]
[1725378300333,0.00026016,57705.0,57704.0,0.32667]
[1725378302840,0.86051382,57710.0,57709.0,0.086663]
[1725378303043,0.3608,57726.0,57709.0,0.086663]
[1725378303044,0.86051382,57717.0,57716.0,0.086652]
[1725378303252,0.85251382,57717.0,57716.0,0.69610261]
[1725378304437,0.00025992,57722.0,57716.0,0.60945061]
[1725378304635,0.00025992,57722.0,57721.0,0.6008]
[1725378305035,0.00025992,57722.0,57721.0,0.3608]
[1725378305239,0.17354592,57722.0,57721.0,0.3608]
[1725378305540,0.17354592,57722.0,57716.0,0.24865061]
[1725378305541,0.086651,57717.0,57716.0,0.24865061]
[1725378305740,0.087451,57717.0,57716.0,0.24865061]
[1725378305950,0.087451,57717.0,57716.0,0.27924665]
[1725378307435,0.0008,57717.0,57716.0,0.27924665]
[1725378307845,0.93996482,57717.0,57716.0,0.27059604]
[1725378308152,0.93996482,57717.0,57716.0,0.03059604]
[1725378308334,0.93996482,57717.0,57712.0,0.24]
[1725378308335,0.086657,57713.0,57712.0,0.24]
[1725378308644,0.087457,57713.0,57712.0,0.24]
[1725378309143,0.087457,57713.0,57712.0,0.27067218]
[1725378309355,0.0008,57713.0,57712.0,0.27067218]
[1725378309538,0.0008,57713.0,57712.0,0.63147218]
[1725378312741,0.0008,57713.0,57712.0,0.71813018]
[1725378313151,0.85251382,57720.0,57712.0,2.05877218]
[1725378313348,0.85251382,57720.0,57719.0,0.24]
[1725378313852,0.85251382,57720.0,57719.0,0.326648]
[1725378314438,0.32866001,57728.0,57721.0,0.086645]
[1725378314439,0.85251382,57727.0,57721.0,0.086645]
[1725378315043,0.004,57730.0,57719.0,0.8813]
[1725378315044,0.85251382,57726.0,57725.0,0.086639]
[1725378315251,0.451425,57734.0,57725.0,0.086639]
[1725378315252,0.3608,57734.0,57733.0,0.086627]
[1725378315545,0.60421382,57744.0,57733.0,3.226627]
[1725378315757,0.086616,57740.0,57739.0,0.24]
[1725378316142,0.6008,57741.0,57734.0,0.00025992]
[1725378316458,0.086624,57735.0,57734.0,0.24025992]
[1725378316651,0.087024,57735.0,57734.0,0.24025992]
[1725378319854,0.0004,57735.0,57734.0,0.24025992]
[1725378320261,0.00017203,57745.0,57734.0,1.35985992]
[1725378320459,0.00017203,57745.0,57744.0,0.44741]
[1725378320659,0.00017203,57745.0,57744.0,0.69586058]
[1725378320854,0.00017203,57745.0,57744.0,0.60925058]
[1725378322152,0.27251382,57754.0,57750.0,0.086601]
[1725378322452,0.086589,57758.0,57754.0,0.24]
[1725378322651,0.086589,57758.0,57751.0,2.9]
[1725378322652,0.27251382,57760.0,57752.0,0.24]
[1725378322961,0.0004,57753.0,57752.0,0.24]
[1725378323158,0.0004,57753.0,57751.0,2.90124]
[1725378323370,0.0004,57753.0,57751.0,2.9]
[1725378323371,0.0004,57752.0,57751.0,2.9]
[1725378323661,0.0004,57752.0,57751.0,3.14]
[1725378324155,0.244,57767.0,57751.0,3.14]
[1725378324156,0.27651382,57763.0,57760.0,0.086586]
[1725378324358,0.35909582,57763.0,57762.0,0.24]
[1725378324551,0.35909582,57763.0,57759.0,0.24]
[1725378324748,0.35909582,57763.0,57757.0,0.3608]
[1725378325151,0.3608,57761.0,57755.0,0.24]
[1725378325356,0.086591,57757.0,57755.0,0.24]
[1725378325552,0.24,57756.0,57751.0,0.03229995]
[1725378325760,0.24,57756.0,57751.0,0.03093995]
[1725378325761,0.086598,57752.0,57751.0,0.03093995]
[1725378325962,0.086601,57750.0,57749.0,0.3608]
[1725378326151,0.086601,57750.0,57749.0,0.6008]
[1725378326959,0.086601,57750.0,57749.0,0.63168669]
[1725378327862,0.27251382,57754.0,57749.0,0.63168669]
[1725378328056,0.35910882,57754.0,57753.0,0.24]
[1725378328683,0.27251382,57754.0,57753.0,0.24]
[1725378330563,0.086597,57753.0,57751.0,0.24]
[1725378330867,0.0004,57752.0,57751.0,0.24]
[1725378333866,0.0004,57752.0,57751.0,0.3266]
[1725378334071,0.27251382,57758.0,57751.0,0.24]
[1725378334363,0.27251382,57758.0,57757.0,0.326591]
[1725378335065,0.27251382,57758.0,57757.0,0.24]
[1725378335765,0.27251382,57758.0,57757.0,0.635391]
[1725378336063,0.086582,57763.0,57759.0,0.086587]
[1725378336264,0.086582,57763.0,57762.0,0.24]
[1725378336567,0.086578,57766.0,57762.0,0.24]
[1725378336757,0.086578,57766.0,57765.0,0.24]
[1725378336961,0.27347383,57767.0,57765.0,0.24]
[1725378337160,0.00096001,57767.0,57766.0,0.086577]
[1725378337464,0.086569,57772.0,57767.0,0.086576]
[1725378337465,0.00092,57770.0,57767.0,0.086576]
[1725378337666,0.086569,57772.0,57769.0,0.24]
[1725378338067,0.27251382,57775.0,57769.0,0.24]
[1725378338266,0.3184,57777.0,57774.0,0.24]
[1725378338267,0.086563,57776.0,57774.0,0.24]
[1725378339057,0.086563,57776.0,57774.0,0.24869088]
[1725378339255,0.086563,57776.0,57769.0,0.00025968]
[1725378339256,0.3184,57777.0,57771.0,0.24]
[1725378339459,0.0004,57772.0,57771.0,0.24]
[1725378339658,0.086968,57772.0,57771.0,0.24]
[1725378341160,0.0004,57772.0,57771.0,0.24]
[1725378341361,0.0004,57772.0,57771.0,0.68737]
[1725378341968,0.0004,57772.0,57771.0,0.6008]
[1725378342159,0.0004,57772.0,57771.0,0.68737]
[1725378342672,0.0004,57772.0,57771.0,0.6008]
[1725378342864,0.086968,57772.0,57770.0,0.00124]
[1725378343167,0.086571,57770.0,57769.0,0.00025968]
[1725378344376,0.086571,57770.0,57769.0,0.24025968]
[1725378349765,0.0004,57771.0,57769.0,0.24025968]
[1725378349965,0.0004,57771.0,57770.0,0.05148025]
[1725378350170,0.0004,57771.0,57769.0,0.32683168]
[1725378350371,0.0004,57771.0,57770.0,0.13804412]
[1725378350571,0.0004,57771.0,57770.0,0.409471]
[1725378354776,0.0004,57771.0,57770.0,0.770271]
[1725378355272,0.27251382,57779.0,57770.0,0.6837]
[1725378355477,0.27251382,57779.0,57777.0,0.24]
[1725378355671,0.27251382,57779.0,57778.0,0.086559]
[1725378355868,0.32449141,57791.0,57790.0,0.086541]
[1725378356069,0.086539,57792.0,57790.0,0.24]
[1725378356265,0.00088,57791.0,57790.0,0.24]
[1725378356469,0.00088,57791.0,57788.0,0.0088266]
[1725378356671,0.30908,57791.0,57788.0,0.0088266]
[1725378356878,0.086543,57789.0,57788.0,0.0088266]
[1725378357070,0.77798,57791.0,57788.0,0.0088266]
[1725378357278,0.77798,57791.0,57790.0,0.24]
[1725378357279,0.7771,57791.0,57790.0,0.24]
[1725378357478,0.7771,57791.0,57787.0,0.24]
[1725378357479,0.086544,57788.0,57787.0,0.24]
[1725378357877,0.3258,57790.0,57787.0,0.326544]
[1725378358078,0.26451382,57794.0,57790.0,0.086541]
[1725378358275,0.26451382,57794.0,57793.0,0.24]
[1725378358677,1.1299,57800.0,57793.0,0.326537]
[1725378358678,0.26451382,57797.0,57793.0,0.326537]
[1725378358879,0.26451382,57797.0,57796.0,0.24]
[1725378360694,0.35104482,57797.0,57796.0,0.24]
[1725378360887,0.26451382,57797.0,57794.0,0.24]
[1725378361080,0.086534,57795.0,57794.0,0.24]
[1725378361273,0.086934,57795.0,57794.0,0.24]
[1725378361472,0.0004,57795.0,57794.0,0.24]
[1725378361681,0.0004,57795.0,57794.0,0.326535]
[1725378362271,0.0004,57795.0,57794.0,0.821835]
[1725378363084,0.26451382,57803.0,57794.0,0.7661206]
[1725378363287,0.3608,57804.0,57802.0,0.24]
[1725378364283,0.4617,57806.0,57802.0,0.24]
[1725378364485,0.3608,57803.0,57800.0,0.24]
[1725378364881,0.086525,57801.0,57800.0,0.24]
[1725378366577,0.086525,57801.0,57800.0,0.2705869]
[1725378366976,0.26451382,57803.0,57800.0,0.2705869]
[1725378367194,0.26451382,57803.0,57802.0,0.24]
[1725378368287,0.35103582,57803.0,57802.0,0.24]
[1725378368698,0.26051382,57803.0,57802.0,0.24]
[1725378369492,0.27451382,57803.0,57802.0,0.24]
[1725378370086,0.36103582,57803.0,57802.0,0.24]
[1725378371193,0.173056,57799.0,57798.0,0.03138148]
[1725378371394,0.086529,57798.0,57797.0,0.00025968]
[1725378371685,0.086929,57798.0,57797.0,0.00025968]
[1725378371878,2.033669,57798.0,57797.0,0.00025968]
[1725378372080,1.601158,57798.0,57797.0,0.00025968]
[1725378372477,1.86167182,57798.0,57797.0,0.00025968]
[1725378373082,1.86167182,57798.0,57797.0,0.03195961]
[1725378373280,1.87567182,57798.0,57797.0,0.03195961]
[1725378373485,1.78914282,57798.0,57797.0,0.03195961]
[1725378373687,1.87567182,57798.0,57797.0,0.03195961]
[1725378374485,2.38925002,57798.0,57797.0,0.03195961]
[1725378375190,1.87021002,57798.0,57797.0,0.03195961]
[1725378376581,0.84288102,57798.0,57797.0,0.27195961]
[1725378376790,0.35598102,57798.0,57797.0,0.27195961]
[1725378376995,0.35598102,57798.0,57797.0,0.03195961]
[1725378377194,0.44251002,57798.0,57797.0,0.03195961]
[1725378377396,0.68251002,57798.0,57797.0,0.03195961]
[1725378377891,1.88807902,57798.0,57797.0,0.03195961]
[1725378378096,1.94005661,57798.0,57797.0,0.00025968]